[Event "BL 2016-17"]
[Site "St. Veit/Glan"]
[Date "2017.03.23"]
[Round "5"]
[White "Halvax, Georg"]
[Black "Dornauer, Joachim"]
[Result "1-0"]
[ECO "B90"]
[WhiteElo "2429"]
[BlackElo "2181"]
[Annotator "ChessBase"]
[PlyCount "73"]
[EventDate "2017.??.??"]
[EventType "team-tourn"]
[EventCountry "AUT"]
[SourceTitle "playchess.com"]
[Source "ChessBase"]
[SourceQuality "1"]
[WhiteTeam "Maria Saal"]
[BlackTeam "St. Valentin"]
[TimeControl "40/5400+30:1800+30"]

1. e4 {[%emt 0:00:00]} c5 {[%emt 0:00:08]} 2. Nf3 {[%emt 0:00:00]} d6 {[%emt 0:00:09]} 3. d4 {[%emt 0:00:00]} cxd4 {[%emt 0:00:07]} 4. Nxd4 {[%emt 0:00:00]} Nf6 {[%emt 0:00:10]} 5. Nc3 {[%emt 0:00:02]} a6 {[%emt 0:00:11]} 6. Be3 {[%emt 0:00:07]} e5 {[%emt 0:00:15]} 7. Nb3 {[%emt 0:00:08]} Be7 {[%emt 0:00:16]} 8. Qd2 {[%emt 0:00:08]} Be6 {[%emt 0:00:56]} 9. O-O-O {[%emt 0:00:11]} O-O {[%emt 0:00:28]} 10. f4 {[%emt 0:00:14]} b5 {[%emt 0:06:51]} 11. f5 {[%emt 0:00:13]} Bc4 {[%emt 0:00:46]} 12. Kb1 {[%emt 0:00:08]} Nbd7 {[%emt 0:06:58]} 13. h3 {[%emt 0:03:34]} Nb6 {[%emt 0:10:36]} 14. g4 {[%emt 0:10:49]} Bxf1 {[%emt 0:12:16]} 15. Rhxf1 {[%emt 0:03:55]} b4 {[%emt 0:06:43]} 16. Nd5 {[%emt 0:04:42]} Nfxd5 {[%emt 0:00:57]} 17. exd5 {[%emt 0:00:08]} Nc4 {[%emt 0:01:41]} 18. Qd3 {[%emt 0:00:23]} Nxe3 {[%emt 0:01:53]} 19. Qxe3 {[%emt 0:00:07]} Bg5 {[%emt 0:00:08]} 20. Qe4 {[%emt 0:02:50]} a5 {[%emt 0:01:40]} 21. Nd2 {[%emt 0:00:42]} Bxd2 {[%emt 0:02:05]} 22. Rxd2 {[%emt 0:00:18]} f6 {[%emt 0:11:22]} 23. h4 {[%emt 0:00:33]} Rc8 {[%emt 0:00:33]} 24. Rg2 {[%emt 0:00:46]} Qc7 {[%emt 0:03:45]} 25. b3 {[%emt 0:05:08]} Qf7 {[%emt 0:11:56]} 26. g5 {[%emt 0:03:56]} Rc5 {[%emt 0:11:54]} 27. g6 {[%emt 0:08:45]} hxg6 {[%emt 0:02:09]} 28. Rxg6 {[%emt 0:01:37]} Qxd5 {[%emt 0:00:50]} 29. Qg4 {[%emt 0:00:45]} Rf7 {[%emt 0:00:31]} 30. Rd1 {[%emt 0:03:54]} Qc6 {[%emt 0:01:04]} 31. Rg1 {[%emt 0:00:01]} Qd7 {[%emt 0:00:38]} 32. h5 {[%emt 0:03:33]} Rc7 {[%emt 0:02:08]} 33. h6 {[%emt 0:02:08]} Qc6 {[%emt 0:00:40]} 34. Qe2 {[%emt 0:00:13]} d5 {[%emt 0:00:46]} 35. Qh2 {[%emt 0:00:18]} d4 {[%emt 0:01:03]} 36. hxg7 {[%emt 0:00:23]} Rxg7 {[%emt 0:00:33]} 37. Rh1 {[%emt 0:00:04]} 1-0

[Event "BL 2016-17"]
[Site "St. Veit/Glan"]
[Date "2017.03.23"]
[Round "5"]
[White "Tober, Gerhard"]
[Black "Kreisl, Robert"]
[Result "0-1"]
[ECO "B13"]
[WhiteElo "2260"]
[BlackElo "2426"]
[Annotator "NA"]
[PlyCount "74"]
[EventDate "2017.??.??"]
[EventType "team-tourn"]
[EventCountry "AUT"]
[SourceTitle "playchess.com"]
[Source "ChessBase"]
[SourceQuality "1"]
[WhiteTeam "St. Valentin"]
[BlackTeam "Maria Saal"]
[TimeControl "40/5400+30:1800+30"]

1. e4 {[%emt 0:00:00]} c6 {[%emt 0:00:03]} 2. d4 {[%emt 0:00:00]} d5 {[%emt 0:00:05]} 3. exd5 {[%emt 0:00:34]} cxd5 {[%emt 0:00:10]} 4. Bd3 {[%emt 0:00:38]} Nc6 {[%emt 0:00:06]} 5. c3 {[%emt 0:00:12]} Qc7 {[%emt 0:03:57]} 6. Ne2 {[%emt 0:01:08]} Bg4 {[%emt 0:01:07]} 7. h3 {[%emt 0:00:51] B13: Caro-Kann: Exchange Variation and Panov-Botvinnik Attack} (7. O-O e6 8. Qe1 Bxe2 9. Qxe2 Nf6 10. Nd2 Bd6 11. g3 O-O 12. f4 Rae8 13. Nf3 Nd7 14. Bd2 f5 {1-0 (34) Yu,Y (2729)-Dreev,A (2652) Doha 2016}) 7... Bh5 {[%emt 0:01:20]} 8. O-O {[%emt 0:01:00]} e6 {[%emt 0:01:22] LiveBook: 3 Games} 9. Bf4 {[%emt 0:07:50]} Qxf4 $146 {[%emt 0:12:37]} (9... Bd6 10. Bxd6 Qxd6 11. Qd2 Nf6 12. Nf4 Bg6 13. Bxg6 hxg6 14. Nd3 O-O {0-1 (38) Mrksic,B (2223)-Buli,V (2359) Crikvenica 2008}) 10. Nxf4 {[%emt 0:00:36]} Bxd1 {[%emt 0:00:05]} 11. Rxd1 {[%emt 0:00:14]} Bd6 {[%emt 0:00:06]} 12. Ne2 {[%emt 0:02:26]} Nge7 {[%emt 0:02:47]} 13. Nd2 {[%emt 0:01:14]} O-O {[%emt 0:08:44]} 14. f4 {[%emt 0:15:14]} f6 {[%emt 0:11:13]} 15. Rf1 {[%emt 0:10:04]} e5 {[%emt 0:16:51]} 16. fxe5 {[%emt 0:03:07]} fxe5 {[%emt 0:00:09]} 17. dxe5 {[%emt 0:03:14]} Nxe5 {[%emt 0:03:13]} 18. Bc2 {[%emt 0:02:41]} g6 {[%emt 0:02:19]} 19. Nd4 {[%emt 0:15:54]} Bc5 {[%emt 0:00:58]} 20. N2b3 {[%emt 0:19:58]} Bb6 {[%emt 0:00:35]} 21. a4 {[%emt 0:02:01]} a5 {[%emt 0:03:50]} 22. Rae1 {[%emt 0:04:23]} N7c6 {[%emt 0:00:55]} 23. Re2 {[%emt 0:00:24]} Nxd4 $11 {[%emt 0:12:26]} 24. Nxd4 {[%emt 0:00:55]} Nc6 {[%emt 0:00:14]} 25. Rd2 {[%emt 0:03:10]} Rxf1+ {[%emt 0:03:14]} 26. Kxf1 {[%emt 0:00:02]} Bxd4 {[%emt 0:06:19]} 27. cxd4 {[%emt 0:00:04]} Rf8+ {[%emt 0:00:04]} 28. Ke1 {[%emt 0:00:41]} Re8+ {[%emt 0:01:15]} 29. Kd1 {[%emt 0:00:47]} Nb4 {[%emt 0:00:31]} 30. Rf2 {[%emt 0:00:46]} Kg7 {[%emt 0:00:36]} 31. Kd2 {[%emt 0:00:47]} Re6 {[%emt 0:00:52]} 32. Bb3 {[%emt 0:02:06]} Re4 {[%emt 0:00:39]} 33. Bc2 {[%emt 0:01:36]} Rxd4+ {[%emt 0:01:14]} 34. Ke3 {[%emt 0:00:22]} Rc4 {[%emt 0:03:22]} 35. Bb3 {[%emt 0:00:06]} Re4+ {[%emt 0:00:02]} 36. Kf3 {[%emt 0:00:02]} Rd4 {[%emt 0:01:12]} 37. Ke3 {[%emt 0:00:32]} Rd3+ {[%emt 0:00:03] Kd4} 0-1